bitfinex/quotes_ETHUSD_20250623
["timestamp","ask_amount","ask_price","bid_price","bid_amount"]
[1750702937954,2.04244058,2297.5,2297.1,4.39322649]
[1750702938142,2.414,2297.9,2297.1,4.39321238]
[1750702938486,1.1134,2297.7,2297.1,0.04]
[1750702938676,0.55,2297.6,2297.1,0.04]
[1750702938889,2.14817445,2297.7,2297.1,0.04]
[1750702939185,2.14817445,2297.7,2297.1,4.39323653]
[1750702939477,0.55,2297.6,2297.1,0.04]
[1750702939644,0.55,2297.6,2297.2,4.35312515]
[1750702939867,0.55,2297.6,2297.1,4.39320164]
[1750702940692,0.55,2297.6,2297.1,0.04]
[1750702940866,2.06121745,2297.6,2297.1,0.04]
[1750702941595,2.06121745,2297.6,2297.1,4.39318161]
[1750702941781,0.55,2297.6,2297.1,4.39318161]
[1750702942111,0.55,2297.6,2297.1,0.04]
[1750702942677,0.55,2297.4,2297.1,0.04]
[1750702942892,1.58477445,2297.4,2297.1,0.04]
[1750702943728,0.55,2297.4,2297.1,0.04]
[1750702944307,11.7063,2297.2,2297.1,0.04]
[1750702944468,16.42976887,2297.2,2297.1,0.04]
[1750702945007,12.19160806,2297.2,2297.1,0.04]
[1750702945165,11.1563,2297.2,2297.1,0.04]
[1750702945365,20.1868947,2297.8,2297.1,0.04]
[1750702945366,2.414,2297.6,2297.1,0.04]
[1750702945593,10.0,2297.5,2297.1,0.04]
[1750702946366,0.55,2297.4,2297.1,0.04]
[1750702946567,2.06865245,2297.4,2297.1,0.04]
[1750702946868,1.1185,2297.2,2297.1,0.04]
[1750702947070,11.6685,2297.2,2297.1,0.04]
[1750702947276,24.84141921,2297.2,2297.1,0.04]
[1750702948292,24.92241921,2297.2,2297.1,0.04]
[1750702948480,28.37142638,2297.2,2297.1,0.04]
[1750702948700,29.75040187,2297.2,2297.1,0.04]
[1750702948902,18.64708569,2297.2,2297.1,0.04]
[1750702949117,14.1635,2297.2,2297.1,0.04]
[1750702949292,15.19787045,2297.2,2297.1,0.04]
[1750702949488,14.1635,2297.2,2297.1,0.04]
[1750702949705,1.1995,2297.2,2297.1,0.04]
[1750702949908,10.46,2297.5,2297.1,4.39319818]
[1750702950128,10.0,2297.4,2297.1,0.04]
[1750702950818,0.55,2297.4,2297.1,0.04]
[1750702951506,10.55,2297.4,2297.1,0.04]
[1750702951709,11.58600792,2297.4,2297.1,0.04]
[1750702952093,10.55,2297.4,2297.1,0.04]
[1750702952295,13.79057924,2297.4,2297.1,0.04]
[1750702952484,1.03597845,2297.3,2297.1,0.04]
[1750702952690,1.03597845,2297.2,2297.1,0.04]
[1750702952898,1.03597845,2297.3,2297.1,0.04]
[1750702953148,2.96503637,2297.2,2297.1,0.04]
[1750702953297,4.11923637,2297.2,2297.1,0.04]
[1750702953812,2.74017845,2297.2,2297.1,0.04]
[1750702954009,1.03597845,2297.2,2297.1,0.04]
[1750702954210,12.1642,2297.5,2297.1,0.04]
[1750702954211,11.03597845,2297.4,2297.1,0.04]
[1750702954400,1.03597845,2297.3,2297.1,0.04]
[1750702954597,1.03597845,2297.2,2297.1,0.04]
[1750702954917,1.03597845,2297.3,2297.1,0.04]
[1750702955088,1.03888342,2297.2,2297.1,0.04]
[1750702955283,1.03888342,2297.3,2297.1,0.04]
[1750702955609,1.308823,2299.0,2297.1,0.04]
[1750702955610,1.1544,2299.5,2299.2,4.3491885]
[1750702955785,1.1944,2299.9,2299.0,8.046]
[1750702956222,1.1944,2299.9,2299.2,4.34923285]
[1750702956524,1.1944,2299.9,2298.8,8.046]
[1750702956525,11.1944,2299.9,2298.8,8.046]
[1750702956688,0.55,2299.6,2299.0,4.34963164]
[1750702956886,0.55,2299.6,2298.9,4.3498895]
[1750702956887,2.54295513,2299.8,2298.9,4.34990647]
[1750702957096,1.1944,2299.9,2299.2,4.34917341]
[1750702957421,0.55,2300.0,2299.2,4.34917341]
[1750702957622,2.408,2300.1,2298.8,12.39608472]
[1750702957790,2.408,2300.1,2299.6,4.34857003]
[1750702957994,2.408,2300.4,2299.7,4.34836184]
[1750702958194,0.55,2300.2,2299.6,4.3485473]
[1750702958541,0.2408,2300.3,2299.6,4.3485473]
[1750702958699,0.55,2300.2,2299.4,4.34881427]
[1750702958888,0.55,2300.2,2299.7,4.34836738]
[1750702959129,0.55,2300.2,2299.2,4.3493389]
[1750702959290,0.55,2300.2,2299.6,4.3484051]
[1750702959637,0.55,2300.0,2299.6,4.3484051]
[1750702960133,0.55,2300.0,2299.5,4.34867714]
[1750702960292,0.55,2300.0,2299.5,4.34867716]
[1750702960492,0.55,2300.0,2299.7,4.34825012]
[1750702960693,0.55,2300.0,2299.3,12.39112651]
[1750702960694,0.55,2300.0,2299.6,4.34848542]
[1750702960905,0.823748,2300.0,2299.6,4.34848542]
[1750702961105,0.2408,2300.3,2299.4,10.0]
[1750702961306,1.2095,2300.7,2300.4,4.34695521]
[1750702961507,12.868,2301.1,2300.3,4.34725905]
[1750702961508,1.2095,2301.0,2300.3,4.34725905]
[1750702961724,1.2095,2301.0,2299.6,1.1818]
[1750702961725,15.44465134,2301.0,2299.6,1.1818]
[1750702962050,1.2095,2300.4,2299.6,4.34839909]
[1750702962251,11.12095,2300.3,2299.7,4.3482948]
[1750702962537,0.55,2300.2,2299.4,1.1818]
[1750702962746,0.55,2300.2,2299.6,4.34857706]
[1750702962939,0.55,2300.2,2299.5,4.34868515]
[1750702963237,0.55,2300.2,2299.4,9.2208]
[1750702963437,1.167095,2300.1,2299.6,4.34841621]
[1750702963621,1.167095,2300.1,2299.7,4.3483485]
[1750702963945,0.55,2300.0,2299.1,8.039]
[1750702964232,0.55,2300.0,2299.6,4.34844775]
[1750702964532,1.167095,2300.1,2299.1,9.2338]
[1750702964824,1.167095,2300.1,2299.7,4.34835634]
[1750702965024,1.167095,2300.1,2299.6,4.34841305]
[1750702965336,1.167095,2300.1,2299.5,4.34869856]
[1750702965531,0.55,2300.0,2299.4,4.3488724]
[1750702965743,0.55,2299.8,2298.8,1.1019]
[1750702966053,0.55,2299.4,2298.7,8.036]
[1750702966248,0.55,2299.4,2298.5,5.45247562]
[1750702966393,0.55,2299.4,2298.5,4.35057562]
[1750702966929,0.55,2299.4,2298.6,4.3503794]
[1750702967433,0.55,2299.4,2298.5,4.35055731]
[1750702967734,0.55,2299.1,2298.4,12.38582963]
[1750702967892,0.55,2299.1,2298.4,4.35082963]
[1750702967893,1.055,2299.0,2298.4,4.35082963]
[1750702968727,1.055,2299.0,2298.5,4.3505523]
[1750702968937,1.055,2299.0,2298.4,4.35074507]
[1750702969137,1.055,2299.0,2298.5,4.3506572]
[1750702970155,1.1753,2299.5,2298.2,9.1369]
[1750702970317,1.1753,2299.5,2298.3,10.0]
[1750702970643,14.23515134,2300.0,2298.3,10.0]
[1750702970644,1.1527,2299.8,2299.2,4.34915274]
[1750702970802,11.1527,2299.8,2299.2,4.34924731]
[1750702971003,11.1527,2299.8,2299.3,4.34914785]
[1750702971212,11.1527,2299.8,2299.4,4.34892821]
[1750702971414,11.1527,2299.8,2299.2,4.34926964]
[1750702971646,11.1527,2299.8,2299.1,12.38344117]
[1750702972142,0.55,2299.7,2299.1,8.034]
[1750702972332,0.55,2299.7,2299.0,4.34966778]
[1750702972527,0.55,2299.7,2298.9,8.033]
[1750702972528,0.55,2299.7,2298.9,4.34984802]
[1750702972841,0.55,2299.7,2298.8,12.3829805]
[1750702972842,0.55,2299.3,2298.8,8.033]
[1750702973011,0.55,2299.3,2298.7,4.35019791]
[1750702973211,0.55,2299.3,2298.6,12.38336226]
[1750702973425,0.96087,2299.3,2298.6,12.38336226]
[1750702973917,1.1527,2299.4,2298.5,1.0915]
[1750702974116,10.0,2299.3,2298.5,9.1235]
[1750702974305,10.0,2299.3,2298.7,4.35027034]
[1750702975056,0.55,2299.2,2298.6,4.35039555]
[1750702975208,0.55,2299.2,2298.7,4.35027192]
[1750702975403,0.55,2299.2,2298.5,1.0915]
[1750702975620,1.96087,2299.2,2298.6,8.031]
[1750702975845,1.96087,2299.2,2298.2,5.44265112]
[1750702976065,1.96087,2299.2,2298.4,12.38184683]
[1750702976356,1.96087,2299.2,2298.4,12.38185261]
[1750702976560,1.41087,2299.2,2298.4,8.031]
[1750702976710,1.1527,2300.0,2299.1,4.34952807]
[1750702977021,1.1527,2300.0,2299.0,1.0915]
[1750702977022,1.1527,2300.0,2299.0,5.44113416]
[1750702977349,1.1527,2300.0,2299.1,12.37952742]
[1750702977660,3.5587,2300.0,2299.1,8.03]
[1750702977826,3.5587,2300.0,2299.3,4.34909247]
[1750702978151,3.5587,2300.0,2299.5,4.34877025]
[1750702978314,3.5587,2300.0,2299.3,4.34901122]
[1750702978517,3.5587,2300.0,2299.1,8.03]
[1750702978746,3.5587,2300.0,2299.4,4.34881528]
[1750702978933,3.5587,2300.0,2299.1,12.3795211]
[1750702979128,1.0290891,2300.3,2299.5,4.34877147]
[1750702979327,1.1527,2300.3,2299.7,4.3482873]
[1750702979632,1.0290891,2300.6,2299.8,4.34820419]
[1750702979833,1.1527,2300.7,2299.8,1.0915]
[1750702980078,1.1527,2300.7,2300.3,4.34725788]
[1750702980230,2.51257,2300.7,2300.0,4.34772059]
[1750702980433,1.1527,2300.7,2300.2,4.34735954]
[1750702980619,0.04,2300.9,2300.5,4.34677395]
[1750702980814,0.04,2300.9,2300.7,4.34637534]
[1750702981089,0.04,2300.9,2300.8,4.34631432]
[1750702981352,0.04,2300.9,2300.8,8.027]
[1750702981754,0.04,2300.9,2300.8,13.17601432]
[1750702981955,0.04,2300.9,2300.8,12.37331432]
[1750702982455,0.04,2300.9,2300.8,13.46431432]
[1750702983758,0.04,2300.9,2300.8,12.37031432]
[1750702984073,6.62195847,2301.8,2300.8,8.024]
[1750702984280,2.20645098,2301.7,2300.8,8.024]
[1750702984420,2.22605847,2301.6,2300.8,8.024]
[1750702984620,2.405,2301.5,2300.8,8.024]
[1750702984836,2.405,2301.5,2300.3,3.5436]
[1750702984837,2.405,2301.4,2300.7,4.34646511]
[1750702985073,1.03195847,2301.6,2300.9,11.1386]
[1750702985249,0.04,2301.9,2301.3,4.34520603]
[1750702985453,0.04,2301.9,2300.9,15.4847088]
[1750702985454,0.04,2301.9,2301.4,8.022]
[1750702986023,0.04,2301.9,2301.4,12.36705531]
[1750702986223,0.04,2301.9,2301.6,4.34470507]
[1750702986419,0.04,2301.9,2301.5,1.1991]
[1750702986673,0.04,2301.9,2301.8,4.3444261]
[1750702987319,0.04,2301.9,2300.8,11.1216]
[1750702987548,12.396,2302.7,2301.4,10.0]
[1750702987718,0.04,2302.9,2301.0,2.396]
[1750702987719,0.04,2302.9,2301.7,4.34461484]
[1750702987920,0.04,2302.9,2302.0,4.34402152]
[1750702988142,1.3282,2302.9,2302.1,8.02]
[1750702988521,15.56335134,2302.9,2301.6,1.1216]
[1750702988837,15.56335134,2302.9,2301.6,9.1396]
[1750702989033,15.56335134,2302.9,2301.7,4.34449844]
[1750702989259,1.3282,2302.9,2302.1,4.34376636]
[1750702989432,1.17742,2302.8,2302.2,8.018]
[1750702990256,1.17742,2302.8,2302.3,4.34344027]
[1750702990474,1.17742,2302.8,2301.6,1.1216]
[1750702990674,1.17742,2302.8,2301.8,2.396]
[1750702990819,1.17742,2302.8,2301.8,6.74035554]
[1750702991153,1.159062,2302.7,2301.9,4.34413132]
[1750702991350,1.159062,2302.7,2301.8,2.396]
[1750702991551,0.04,2302.9,2301.9,11.7261]
[1750702991722,0.04,2302.9,2302.3,4.34330111]
[1750702991922,0.04,2302.9,2302.7,4.3426415]
[1750702992556,0.04,2302.9,2302.5,5.51914614]
[1750702992781,0.04,2302.9,2302.5,5.51920342]
[1750702993072,0.04,2302.9,2302.5,1.1761]
[1750702993677,0.04,2302.9,2302.8,4.34253951]
[1750702993966,0.04,2302.9,2302.8,6.00763951]
[1750702994128,0.04,2302.9,2302.8,8.40263951]
[1750702994324,0.2236657,2303.7,2303.5,4.34107843]
[1750702994520,0.2236657,2303.7,2303.5,8.012]
[1750702994832,0.2236657,2303.7,2303.1,4.34191809]
[1750702995036,0.2236657,2303.7,2303.4,4.34140835]
[1750702995570,0.2236657,2303.7,2303.5,8.012]
[1750702996804,0.2236657,2303.7,2303.2,1.1712]
[1750702997009,0.2236657,2303.7,2303.5,8.011]
[1750702997286,0.2236657,2303.7,2303.2,5.51290587]
[1750702997459,0.2236657,2303.7,2303.6,4.34103142]
[1750702997848,0.2236657,2303.7,2303.5,8.009]
[1750702998248,0.2236657,2303.7,2303.5,12.35021956]
[1750702998667,0.2236657,2303.7,2303.6,4.34103142]
[1750702998860,0.2236657,2303.7,2303.6,5.49473142]
[1750702999155,0.2236657,2303.7,2303.6,14.14173566]
[1750703000292,0.04,2303.9,2303.8,4.89065457]
[1750703000451,0.04,2303.9,2303.8,16.05555457]
[1750703000881,0.04,2303.9,2303.8,4.34065457]
[1750703001084,0.04,2303.9,2303.8,12.34565457]
[1750703003762,0.04,2303.9,2303.8,8.003]
[1750703003959,0.04,2303.9,2303.7,8.002]
[1750703004200,0.04,2303.9,2303.4,4.34131368]
[1750703004408,0.04,2303.9,2303.5,12.34321003]
[1750703004565,0.04,2303.9,2303.5,8.002]
[1750703005075,0.04,2303.9,2302.5,5.54298221]
[1750703005076,10.0,2303.7,2302.5,5.54298221]
[1750703005281,0.7348,2303.4,2302.6,8.002]
[1750703005673,0.7348,2303.4,2302.6,12.34477823]
[1750703005873,0.7348,2303.4,2302.6,8.002]
[1750703006080,0.7348,2303.4,2302.9,4.34226953]
[1750703006285,0.7348,2303.4,2302.8,4.34242212]
[1750703006286,0.7348,2303.4,2303.0,8.002]
[1750703006802,10.0,2303.3,2302.2,1.2298]
[1750703007120,3.1278,2303.4,2302.3,12.34548056]
[1750703007279,0.7348,2303.8,2302.9,1.2298]
[1750703007481,0.7348,2303.8,2303.0,8.001]
[1750703007679,0.7348,2303.8,2303.3,4.34141123]
[1750703007920,0.7348,2303.8,2303.4,12.34240815]
[1750703008216,0.04,2303.9,2303.4,12.34230474]
[1750703008524,0.04,2303.9,2303.5,4.34121203]
[1750703008730,0.04,2303.9,2303.0,4.34207959]
[1750703008905,0.04,2303.9,2303.1,8.001]
[1750703009106,0.04,2303.9,2303.2,4.34178534]
[1750703009306,0.04,2303.9,2303.7,4.33517619]
[1750703009483,0.04,2303.9,2303.8,4.34065457]
[1750703009690,0.04,2303.9,2303.8,6.10985457]
[1750703009989,0.04,2303.9,2303.8,26.50285457]
[1750703010731,0.04,2303.9,2303.8,25.95285457]
[1750703010890,0.04,2303.9,2303.8,26.50285457]
[1750703011542,0.04,2303.9,2303.8,13.55985457]
[1750703011850,0.04,2303.9,2303.8,14.10985457]
[1750703012218,0.04,2303.9,2303.8,13.55985457]
[1750703012628,0.04,2303.9,2303.8,12.34065457]
[1750703013131,0.04,2303.9,2303.8,12.89065457]
[1750703013654,0.04,2303.9,2303.8,12.33965457]
[1750703013854,0.04,2303.9,2303.8,12.88965457]
[1750703015830,0.04,2303.9,2303.8,12.33965457]
[1750703016026,0.04,2303.9,2303.8,12.88965457]
[1750703016431,0.04,2303.9,2303.8,24.13185457]
[1750703016739,0.04,2303.9,2303.8,23.58185457]
[1750703016940,0.04,2303.9,2303.8,24.13185457]
[1750703018134,0.04,2303.9,2303.8,16.13285457]
[1750703018436,0.04,2303.9,2303.8,23.57985457]
[1750703018835,0.04,2303.9,2303.8,12.33665457]
[1750703019365,0.04,2303.9,2303.3,4.34144566]
[1750703019538,1.76357303,2303.8,2303.4,7.996]
[1750703019736,1.02877303,2303.7,2303.4,7.996]
[1750703019930,1.02877303,2303.6,2303.4,7.996]
[1750703020133,0.7348,2303.8,2303.4,7.996]
[1750703020329,0.04,2303.9,2303.5,12.33721272]
[1750703020558,1.03439176,2303.8,2303.5,7.996]
[1750703020874,1.03439176,2303.7,2303.5,7.996]
[1750703021026,1.4387909,2303.6,2303.2,4.34162817]
[1750703021247,1.03535609,2303.5,2303.3,7.996]
[1750703021443,0.7348,2303.8,2303.3,7.996]
[1750703021648,1.43984056,2303.7,2303.3,7.996]
[1750703021880,1.43984056,2303.6,2303.3,12.3375945]
[1750703022044,1.44027871,2303.5,2303.3,12.3375945]
[1750703022245,0.7348,2303.8,2302.8,10.431]
[1750703022446,1.44091664,2303.7,2303.4,4.34131505]
[1750703022647,1.44091083,2303.6,2303.5,4.34121988]
[1750703022874,0.04,2303.9,2303.4,7.996]
[1750703023063,1.4410921,2303.8,2303.4,7.996]
[1750703023386,0.7348,2303.6,2302.8,10.431]
[1750703023559,0.7348,2303.6,2302.7,1.2316]
[1750703023560,1.4412026,2303.5,2302.7,1.2316]
[1750703023765,0.7348,2303.3,2302.8,7.996]
[1750703023973,1.44159922,2303.2,2302.8,7.996]
[1750703024178,1.44159922,2303.1,2302.8,7.996]
[1750703024374,1.44159922,2303.1,2302.3,1.2049]
[1750703024375,0.7348,2302.9,2302.3,4.34339722]
[1750703024674,0.7348,2302.7,2301.3,1.2049]
[1750703024875,10.7348,2301.9,2301.0,4.34585593]
[1750703025076,10.7348,2301.9,2300.7,1.2049]
[1750703025077,1.44184813,2301.8,2301.1,8.036]
[1750703025280,1.44184813,2301.7,2301.1,8.036]
[1750703025449,1.44184813,2301.6,2301.1,8.036]
[1750703025653,1.03632138,2301.8,2301.2,7.996]
[1750703025978,1.44182743,2301.7,2301.4,4.34505619]
[1750703026152,3.1208,2301.9,2301.1,8.036]
[1750703026349,10.0,2302.3,2301.2,0.55]
[1750703026350,1.4391338,2301.8,2301.2,0.55]
[1750703026553,1.03502107,2302.2,2301.8,4.34430423]
[1750703026788,1.43889871,2302.1,2301.9,4.34423579]
[1750703026966,1.03502107,2302.2,2302.0,4.3440119]
[1750703027168,1.03502107,2302.2,2301.7,7.995]
[1750703027169,1.03502107,2302.2,2301.8,4.34441937]
[1750703027478,11.76982107,2302.3,2301.7,4.34451383]
[1750703027791,11.76982107,2302.3,2302.2,4.34367127]
[1750703027792,1.03502107,2302.3,2302.2,4.34367127]
[1750703027995,0.8494,2302.8,2302.2,4.34367127]
[1750703027996,1.03502107,2302.7,2302.2,7.998]
[1750703028789,0.8494,2302.8,2302.2,7.998]
[1750703028957,10.0,2302.6,2302.2,7.998]
[1750703029293,1.88442107,2302.5,2301.8,7.997]
[1750703029457,0.8494,2302.8,2301.9,5.60093736]
[1750703029657,0.8494,2302.8,2301.9,1.2567]
[1750703029991,0.8494,2302.8,2302.2,4.34358391]
[1750703030167,0.8494,2302.8,2302.0,4.34404865]
[1750703030168,0.8494,2302.8,2302.3,7.998]
[1750703030917,0.40276844,2302.7,2302.3,7.998]
[1750703031196,0.40277495,2302.7,2302.3,7.998]
[1750703031377,1.87019455,2302.7,2301.9,7.998]
[1750703031554,0.40277495,2302.6,2301.9,12.34223265]
[1750703031758,0.40277495,2302.6,2301.9,7.998]
[1750703031958,14.50691385,2302.4,2301.5,7.998]
[1750703032181,0.8494,2302.2,2301.1,8.038]
[1750703032389,0.8494,2301.9,2301.1,8.038]
[1750703032791,0.8494,2301.7,2301.1,8.038]
[1750703033096,10.0,2301.5,2301.1,8.038]
[1750703033285,10.0,2301.5,2301.1,0.04]
[1750703033888,0.8494,2301.7,2301.1,0.04]
[1750703034072,2.387,2301.6,2301.1,0.04]
[1750703034271,0.8494,2301.7,2301.1,0.04]
[1750703035255,0.8494,2301.7,2301.2,4.34545056]
[1750703035458,0.8494,2301.7,2301.4,4.34508003]
[1750703035659,0.8494,2301.7,2301.2,4.34547476]
[1750703036206,0.8494,2301.7,2301.1,4.38567085]
[1750703036207,0.8494,2301.7,2301.3,4.34535907]
[1750703036511,10.0,2301.6,2301.1,4.38564305]
[1750703036685,0.8494,2301.7,2301.2,4.3455382]
[1750703037560,0.8494,2301.7,2301.4,4.34499958]
[1750703037765,0.8494,2302.4,2301.6,4.34471136]
[1750703038074,3.51634,2302.3,2301.6,4.34469658]
[1750703038574,3.51634,2302.3,2301.7,4.34460492]
[1750703039106,3.51634,2302.3,2301.6,4.34474444]
[1750703039480,3.51634,2302.3,2301.4,4.34510036]
[1750703040292,3.51634,2302.3,2301.5,4.34493815]
[1750703040492,10.8494,2302.4,2301.9,4.34414419]
[1750703040703,10.248,2302.6,2302.3,4.3434826]
[1750703040704,7.86,2302.6,2302.3,4.3434826]
[1750703040997,0.8494,2302.7,2302.3,4.3433829]
[1750703041158,0.8494,2302.7,2302.3,4.34340552]
[1750703041369,0.8494,2302.7,2302.3,4.3433481]
[1750703041607,0.8494,2302.7,2301.9,12.34423689]
[1750703041608,0.8494,2302.7,2302.2,4.3435625]
[1750703042004,0.8494,2302.7,2302.3,4.34347833]
[1750703042210,0.8494,2302.7,2302.2,4.34358113]
[1750703042512,0.8494,2302.7,2302.5,4.34292653]
[1750703042682,0.8494,2303.1,2302.2,1.1783]
[1750703042870,0.8494,2303.1,2302.2,5.52190693]
[1750703043076,13.95691385,2303.0,2302.2,7.999]
[1750703043295,0.8494,2302.9,2302.2,12.34258401]
[1750703043499,3.33003138,2302.9,2302.2,12.34258401]
[1750703043701,3.2374,2302.9,2302.3,4.3434826]
[1750703043909,0.8494,2302.9,2302.8,4.34253951]
[1750703044118,0.8494,2303.2,2302.7,4.34264045]
[1750703044424,0.8494,2303.2,2302.7,4.34264188]
[1750703044590,10.8494,2303.2,2302.2,12.34259202]
[1750703044783,11.12663138,2303.1,2302.3,4.34340637]
[1750703044992,0.8494,2303.0,2302.2,7.999]
[1750703045220,0.55,2302.7,2301.5,1.2493]
[1750703045537,0.8494,2302.5,2301.8,7.998]
[1750703045830,0.8494,2302.5,2301.9,4.34416244]
[1750703046214,1.98934,2302.5,2301.7,4.34455456]
[1750703046431,10.0,2302.4,2301.5,7.998]
[1750703046650,0.55,2302.1,2301.5,7.998]
[1750703046940,12.384,2302.0,2301.5,7.998]
[1750703047171,12.384,2302.0,2301.1,0.04]
[1750703047172,10.0,2301.6,2301.1,0.04]
[1750703047340,10.0,2301.4,2301.1,0.04]
[1750703048045,2.384,2301.3,2301.1,0.04]
[1750703048475,11.3994,2301.2,2301.1,0.04]
[1750703048601,1.88156499,2301.2,2301.1,0.04]
[1750703048805,10.0,2301.7,2301.1,0.04]
[1750703049100,10.0,2301.7,2301.1,4.82415394]
[1750703049307,10.0,2301.7,2301.1,0.04]
[1750703049506,1.03317572,2301.7,2301.1,4.38574267]
[1750703049754,10.8494,2301.8,2301.1,0.04]
[1750703049907,11.88257572,2301.8,2301.1,0.04]
[1750703052075,1.88257572,2301.8,2301.1,0.04]
[1750703052225,3.2344,2301.8,2301.1,0.04]
[1750703052427,0.32344,2301.7,2301.1,0.04]
[1750703053156,1.3994,2301.3,2301.1,0.04]
[1750703053337,13.7844,2301.2,2301.1,0.04]
[1750703053538,14.82057249,2301.2,2301.1,0.04]
[1750703053863,0.55,2300.7,2300.1,0.04]
[1750703054062,3.42117249,2300.6,2300.1,0.04]
[1750703054233,1.03617249,2300.5,2300.1,0.04]
[1750703054434,5.26274863,2300.6,2300.1,0.04]
[1750703054759,1.88557249,2300.5,2300.1,0.04]
[1750703055136,11.88557249,2300.5,2300.1,0.04]
[1750703056458,0.8494,2300.5,2300.3,4.34725603]
[1750703056763,0.8494,2300.9,2300.4,4.34699214]
[1750703056961,0.8494,2300.9,2300.2,4.34736765]
[1750703057303,0.8494,2300.9,2300.5,4.34687512]
[1750703057696,0.8494,2300.9,2300.4,4.34696971]
[1750703057879,0.8494,2300.9,2300.5,4.34686643]
[1750703058209,0.8494,2300.9,2300.5,4.3468724]
[1750703058560,0.8494,2300.9,2300.4,4.34698044]
[1750703058757,1.03419016,2301.0,2300.2,4.34744804]
[1750703058964,10.0,2301.1,2300.7,4.34650166]
[1750703059175,1.03369115,2301.2,2300.7,4.34650166]
[1750703059396,11.03369115,2301.2,2300.7,4.34640163]
[1750703059580,11.03369115,2301.2,2300.8,4.34630477]
[1750703059776,11.03369115,2301.2,2300.2,4.89744804]
[1750703060012,10.0,2301.2,2300.9,4.34603622]
[1750703060477,10.0,2301.2,2300.6,5.58385153]
[1750703060683,11.03405529,2301.5,2300.6,1.2372]
[1750703060885,11.03405529,2301.5,2300.7,4.34650323]
[1750703061099,11.03405529,2301.5,2300.6,5.58381196]
[1750703061302,2.12800553,2301.4,2300.6,5.58381196]
[1750703061476,3.16206082,2301.4,2300.6,4.34662896]
[1750703061779,0.845,2301.3,2300.1,0.04]
[1750703061983,0.55,2301.2,2300.3,4.34717581]
[1750703062278,0.55,2301.2,2300.1,10.04]
[1750703062279,0.845,2300.7,2300.1,0.04]
[1750703062507,3.5255,2300.6,2300.1,0.04]
[1750703063377,2.386,2300.6,2300.1,0.04]
[1750703063581,0.845,2300.7,2300.2,4.34742431]
[1750703063790,0.845,2300.7,2300.1,0.04]
[1750703064191,0.845,2300.7,2300.2,4.34743215]
[1750703064365,0.845,2300.7,2300.1,4.38753737]
[1750703064566,1.1681,2300.7,2300.1,0.04]
[1750703064767,1.1681,2300.7,2300.1,4.38753996]
[1750703064980,2.20176667,2300.7,2300.1,4.38753996]
[1750703065167,2.20176667,2300.7,2300.1,0.04]
[1750703065380,10.55,2300.6,2300.1,0.04]
[1750703065579,0.845,2300.2,2299.1,0.04]
[1750703065827,23.95691385,2300.4,2299.1,0.04]
[1750703065828,11.395,2299.2,2299.1,0.04]
[1750703065968,10.0,2299.8,2299.1,0.04]
[1750703066318,0.845,2299.8,2299.2,4.3493389]
[1750703066526,0.845,2299.8,2299.1,0.04]
[1750703067228,11.99434155,2299.6,2299.1,0.04]
[1750703067578,12.386,2299.8,2299.1,0.04]
[1750703067579,13.38934155,2299.2,2299.1,0.04]
[1750703067779,26.80768778,2299.2,2299.1,0.04]
[1750703067977,10.55,2299.1,2297.3,4.35288671]
[1750703068215,10.0,2298.5,2297.6,4.35227246]
[1750703068436,11.99434155,2298.6,2297.4,12.38462035]
[1750703068437,12.386,2298.6,2297.5,4.35247888]
[1750703068734,10.55,2298.2,2297.1,0.04]
[1750703068895,11.58086405,2298.2,2297.1,4.39326657]
[1750703069095,0.55,2298.1,2297.1,0.04]
[1750703069280,0.805,2297.6,2297.1,0.04]
[1750703069934,0.805,2298.0,2297.1,0.04]
[1750703070082,0.805,2298.0,2297.2,4.35299723]
[1750703070283,0.805,2298.0,2297.3,4.35282232]
[1750703070479,0.805,2298.3,2297.2,14.90312554]
[1750703070784,0.805,2298.8,2298.0,4.35158149]
[1750703071019,0.805,2298.8,2297.8,2.387]
[1750703071231,0.805,2298.8,2297.9,4.3517975]
[1750703071459,0.805,2298.8,2297.9,4.35171839]
[1750703071641,0.805,2298.8,2297.8,6.7388349]
[1750703071642,0.55,2298.6,2297.6,10.0]
[1750703071842,0.55,2298.6,2297.7,4.35210224]
[1750703072005,10.0,2298.5,2297.5,1.2512]
[1750703072209,0.55,2298.4,2297.5,4.35245956]
[1750703072762,0.55,2298.4,2297.4,14.35266052]
[1750703072957,1.86,2298.3,2297.5,4.35253734]
[1750703073105,1.86,2298.3,2297.4,10.0]
[1750703073305,0.805,2298.3,2297.4,10.0]
[1750703073552,0.805,2298.3,2297.4,14.35273376]
[1750703073737,0.805,2298.3,2297.8,4.35183249]
[1750703074053,0.805,2298.3,2297.7,4.35209945]
[1750703074414,0.805,2298.3,2297.9,4.35177217]
[1750703074767,0.805,2298.3,2297.8,4.35191743]
[1750703074918,3.4685,2298.7,2297.9,4.35166188]
[1750703075118,0.48235,2298.6,2297.8,4.35190322]
[1750703075320,10.55,2298.5,2297.5,4.35245581]
[1750703075629,10.55,2298.5,2297.3,4.35290345]
[1750703075630,0.55,2298.3,2297.3,4.35290345]
[1750703075852,0.55,2298.3,2297.4,4.35274532]
[1750703076436,0.55,2298.3,2297.5,4.35255062]
[1750703076674,0.55,2298.3,2297.6,4.35232814]
[1750703077176,0.55,2298.3,2297.1,24.12750142]
[1750703077177,0.23823401,2298.2,2297.1,19.7742]